bitfinex/quotes_SOLUSD_20250106
["timestamp","ask_amount","ask_price","bid_price","bid_amount"]
[1736195818229,8.68673071,219.64,219.58,8.68673071]
[1736195819446,11.3804,219.68,219.53,6.44]
[1736195819650,8.68673071,219.61,219.55,8.68673071]
[1736195820150,8.68673071,219.61,219.54,8.68673071]
[1736195822525,8.68673071,219.6,219.54,8.68673071]
[1736195823635,8.68673071,219.61,219.55,8.68673071]
[1736195824031,8.68673071,219.61,219.54,8.68673071]
[1736195825145,8.68673071,219.6,219.53,15.12673071]
[1736195825652,8.68673071,219.6,219.53,8.68673071]
[1736195825854,8.68673071,219.55,219.47,18.232212]
[1736195826042,23.776884,219.62,219.47,18.232212]
[1736195826043,8.68673071,219.53,219.47,8.68673071]
[1736195827271,8.68673071,219.54,219.47,8.68673071]
[1736195827872,8.68673071,219.54,219.45,1.5064]
[1736195827873,8.68673071,219.54,219.48,8.68673071]
[1736195828081,1.5787,219.64,219.49,8.68673071]
[1736195828255,8.68673071,219.59,219.52,8.68673071]
[1736195828454,8.68673071,219.58,219.52,8.68673071]
[1736195828673,8.68673071,219.57,219.51,8.68673071]
[1736195829061,8.68673071,219.57,219.5,8.68673071]
[1736195829265,8.68673071,219.55,219.47,20.274]
[1736195829457,8.68673071,219.54,219.48,8.68673071]
[1736195829985,8.68673071,219.55,219.49,8.68673071]
[1736195830360,20.0,219.52,219.47,0.274]
[1736195830570,8.68673071,219.5,219.47,0.274]
[1736195831248,8.68673071,219.49,219.47,0.274]
[1736195832586,8.68673071,219.48,219.47,0.274]
[1736195833453,8.68673071,219.49,219.47,0.274]
[1736195834366,8.68673071,219.48,219.47,0.274]
[1736195834952,23.776884,219.51,219.47,0.274]
[1736195835148,8.68673071,219.48,219.47,0.274]
[1736195835661,23.776884,219.51,219.47,0.274]
[1736195835977,8.68673071,219.48,219.47,0.274]
[1736195836874,8.68673071,219.49,219.47,0.274]
[1736195838371,8.68673071,219.5,219.47,0.274]
[1736195838776,8.68673071,219.49,219.47,0.274]
[1736195841176,8.68673071,219.48,219.47,0.274]
[1736195842653,33.98091471,219.48,219.47,0.274]
[1736195845668,1.5173,219.48,219.47,0.274]
[1736195845869,8.68673071,219.49,219.47,0.274]
[1736195846560,8.68673071,219.5,219.47,0.274]
[1736195846877,8.68673071,219.52,219.47,0.274]
[1736195847081,1.5946,219.59,219.48,8.68673071]
[1736195847262,1.5946,219.59,219.47,0.274]
[1736195847263,8.68673071,219.56,219.5,8.68673071]
[1736195847455,8.68673071,219.58,219.51,8.68673071]
[1736195847653,8.68673071,219.58,219.52,8.68673071]
[1736195847883,1.5946,219.59,219.48,6.0764]
[1736195847884,1.5946,219.59,219.54,8.68673071]
[1736195848071,1.98,219.6,219.55,8.68673071]
[1736195848389,8.68673071,219.59,219.52,8.68673071]
[1736195848558,8.68673071,219.58,219.51,8.68673071]
[1736195848754,8.68673071,219.57,219.5,8.68673071]
[1736195849173,20.0,219.63,219.52,8.68673071]
[1736195849388,8.68673071,219.59,219.52,8.68673071]
[1736195849883,8.68673071,219.6,219.53,8.68673071]
[1736195850497,8.68673071,219.59,219.53,8.68673071]
[1736195850780,8.68673071,219.59,219.53,0.274]
[1736195852493,8.68673071,219.58,219.53,0.274]
[1736195852796,8.68673071,219.57,219.53,0.274]
[1736195854895,8.68673071,219.54,219.53,0.274]
[1736195855480,32.46361471,219.54,219.53,0.274]
[1736195856605,43.85101471,219.54,219.53,0.274]
[1736195865114,23.776884,219.5,219.42,6.0521]
[1736195865295,8.68673071,219.46,219.42,6.0521]
[1736195866001,8.68673071,219.44,219.37,8.68673071]
[1736195867622,8.68673071,219.43,219.36,8.68673071]
[1736195868391,8.68673071,219.43,219.37,8.68673071]
[1736195868794,8.68673071,219.42,219.36,28.68673071]
[1736195869108,8.68673071,219.43,219.36,28.68673071]
[1736195870229,8.68673071,219.44,219.37,8.68673071]
[1736195876119,8.68673071,219.43,219.36,28.68673071]
[1736195876418,8.68673071,219.42,219.36,28.68673071]
[1736195876598,8.68673071,219.42,219.36,8.68673071]
[1736195878332,11.392,219.46,219.36,8.68673071]
[1736195878623,8.68673071,219.43,219.37,8.68673071]
[1736195879595,8.68673071,219.42,219.36,8.68673071]
[1736195879917,8.68673071,219.43,219.37,8.68673071]
[1736195880617,8.68673071,219.42,219.36,8.68673071]
[1736195881829,8.6319045,219.42,219.36,8.68673071]
[1736195883128,8.6319045,219.42,219.33,6.439]
[1736195883339,8.6319045,219.42,219.28,14.28521447]
[1736195883340,8.68673071,219.34,219.28,14.28521447]
[1736195883636,1.98,219.34,219.27,14.28521447]
[1736195884201,8.68673071,219.32,219.27,14.28521447]
[1736195884709,8.68673071,219.32,219.26,34.98552894]
[1736195884710,8.68673071,219.3,219.26,6.4151]
[1736195885019,8.68673071,219.29,219.26,6.4151]
[1736195885626,8.68673071,219.27,219.2,8.0186]
[1736195885811,8.68673071,219.27,219.2,16.70533071]
[1736195886622,8.68673071,219.28,219.21,8.68673071]
[1736195886808,8.68673071,219.27,219.2,16.70533071]
[1736195887001,8.68673071,219.26,219.2,16.70533071]
[1736195887197,8.68673071,219.23,219.2,6.3864]
[1736195887423,8.68673071,219.22,219.2,6.3864]
[1736195887819,8.68673071,219.22,219.15,1.6405]
[1736195888022,8.68673071,219.23,219.16,8.68673071]
[1736195888213,21.98,219.25,219.15,1.6405]
[1736195888528,20.0,219.25,219.18,8.68673071]
[1736195888729,8.68673071,219.24,219.17,8.68673071]
[1736195889120,8.68673071,219.24,219.18,8.68673071]
[1736195889320,28.68673071,219.25,219.18,8.68673071]
[1736195889745,8.68673071,219.24,219.18,8.68673071]
[1736195889920,8.68673071,219.23,219.17,3.68673071]
[1736195890120,8.68673071,219.22,219.16,8.68673071]
[1736195890744,8.68673071,219.22,219.15,10.32723071]
[1736195890918,8.68673071,219.19,219.14,6.3864]
[1736195891112,8.68673071,219.18,219.14,6.3864]
[1736195891341,8.68673071,219.18,219.1,1.6405]
[1736195891547,8.68673071,219.18,219.12,8.68673071]
[1736195891722,21.98,219.21,219.13,8.68673071]
[1736195891925,8.68673071,219.19,219.13,8.68673071]
[1736195892124,8.68673071,219.18,219.12,8.68673071]
[1736195892749,8.68673071,219.18,219.1,1.6405]
[1736195893039,8.68673071,219.17,219.11,8.68673071]
[1736195893251,8.68673071,219.17,219.1,1.6405]
[1736195893252,8.68673071,219.17,219.1,10.32723071]
[1736195894720,8.68673071,219.17,219.11,8.68673071]
[1736195894918,8.68673071,219.18,219.12,8.68673071]
[1736195895119,8.68673071,219.19,219.13,8.68673071]
[1736195895847,8.68673071,219.18,219.12,8.68673071]
[1736195896221,8.68673071,219.19,219.12,8.68673071]
[1736195896555,8.68673071,219.18,219.12,8.68673071]
[1736195896761,8.68673071,219.17,219.11,8.68673071]
[1736195896945,8.68673071,219.18,219.11,8.68673071]
[1736195897158,8.68673071,219.17,219.1,10.32723071]
[1736195897446,8.68673071,219.17,219.1,1.6405]
[1736195897655,8.68673071,219.17,219.08,6.3864]
[1736195897828,8.68673071,219.17,219.1,8.68673071]
[1736195898838,8.68673071,219.17,219.08,6.3864]
[1736195898839,8.68673071,219.18,219.11,8.68673071]
[1736195899552,1.98,219.21,219.08,6.3864]
[1736195899553,8.68673071,219.13,219.08,6.3864]
[1736195899761,8.68673071,219.11,219.05,1.655]
[1736195899943,8.68673071,219.1,219.05,1.655]
[1736195900937,8.68673071,219.1,219.04,8.68673071]
[1736195901157,13.75409139,219.1,219.04,13.75409139]
[1736195901349,13.75409139,219.06,218.97,6.0788]
[1736195901544,13.75409139,219.06,218.99,13.75409139]
[1736195901735,13.75409139,219.06,219.0,13.75409139]
[1736195901936,15.36449139,219.12,219.04,13.75409139]
[1736195901937,13.75409139,219.11,219.04,13.75409139]
[1736195902346,13.75409139,219.14,219.07,13.75409139]
[1736195903148,13.75409139,219.18,219.11,13.75409139]
[1736195904038,13.75409139,219.19,219.12,13.75409139]
[1736195904346,13.75409139,219.19,219.13,13.75409139]
[1736195904653,13.75409139,219.19,219.12,13.75409139]
[1736195906767,13.75409139,219.22,219.15,13.75409139]
[1736195906944,13.75409139,219.2,219.13,13.75409139]
[1736195907262,13.75409139,219.19,219.12,13.75409139]
[1736195908859,13.75409139,219.15,219.09,13.75409139]
[1736195909039,13.75409139,219.14,219.07,13.75409139]
[1736195909240,13.75409139,219.13,219.06,19.86179139]
[1736195909859,13.75409139,219.12,219.06,19.86179139]
[1736195910070,13.75409139,219.13,219.07,13.75409139]
[1736195910534,13.75409139,219.13,219.06,19.86179139]
[1736195911563,13.75409139,219.11,218.97,27.8341]
[1736195911776,13.75409139,219.11,219.04,13.75409139]
[1736195912772,13.75409139,219.1,219.03,13.75409139]
[1736195913066,13.75409139,219.09,219.02,13.75409139]
[1736195913437,13.75409139,219.08,219.01,20.02919139]
[1736195913851,13.75409139,219.08,219.02,13.75409139]
[1736195914060,13.75409139,219.09,219.02,13.75409139]
[1736195916367,13.75409139,219.1,219.03,13.75409139]
[1736195916674,13.75409139,219.11,219.04,13.75409139]
[1736195917875,13.75409139,219.11,219.03,13.75409139]
[1736195918181,13.75409139,219.12,219.05,13.75409139]
[1736195918386,15.29249139,219.14,219.07,13.75409139]
[1736195920570,13.75409139,219.15,219.08,13.75409139]
[1736195920760,1.5023,219.19,219.09,13.75409139]
[1736195920761,13.75409139,219.16,219.09,13.75409139]
[1736195922597,15.25639139,219.19,219.12,13.75409139]
[1736195922901,13.75409139,219.18,219.11,13.75409139]
[1736195923077,8.79631203,219.17,219.1,8.79631203]
[1736195924888,8.79631203,219.16,219.1,8.79631203]
[1736195925189,8.79631203,219.15,219.09,8.79631203]
[1736195925486,8.79631203,219.16,219.09,8.79631203]
[1736195926905,8.79631203,219.13,219.07,8.79631203]
[1736195927304,8.79631203,219.14,219.07,8.79631203]
[1736195927991,8.79631203,219.15,219.08,8.79631203]
[1736195931390,8.79631203,219.13,219.06,8.79631203]
[1736195931562,8.79631203,219.13,219.07,8.79631203]
[1736195933397,8.79631203,219.14,219.07,8.79631203]
[1736195933699,8.79631203,219.14,219.08,8.79631203]
[1736195935916,8.79631203,219.15,219.08,8.79631203]
[1736195936195,8.79631203,219.14,219.08,8.79631203]
[1736195938300,8.79631203,219.13,219.07,8.79631203]
[1736195939187,8.79631203,219.14,219.07,8.79631203]
[1736195939389,21.5023,219.19,219.08,8.79631203]
[1736195939591,8.79631203,219.15,219.08,8.79631203]
[1736195940096,1.6116,219.24,219.13,8.79631203]
[1736195940272,8.79631203,219.19,219.13,8.79631203]
[1736195940980,20.0,219.22,219.13,8.79631203]
[1736195941285,8.79631203,219.21,219.15,8.79631203]
[1736195941904,10.40791203,219.24,219.17,8.79631203]
[1736195942088,8.79631203,219.23,219.17,8.79631203]
[1736195942288,8.79631203,219.22,219.16,8.79631203]
[1736195942886,8.79631203,219.22,219.1,9.84694186]
[1736195943112,8.79631203,219.2,219.14,8.79631203]
[1736195943686,8.79631203,219.21,219.14,8.79631203]
[1736195945311,8.79631203,219.21,219.15,8.79631203]
[1736195945606,8.79631203,219.22,219.16,8.79631203]
[1736195946208,7.8375,219.29,219.21,8.79631203]
[1736195946209,10.32021203,219.29,219.21,8.79631203]
[1736195946405,10.32021203,219.29,219.22,8.79631203]
[1736195947197,8.79631203,219.28,219.22,8.79631203]
[1736195948710,2.02,219.34,219.23,8.79631203]
[1736195948883,8.79631203,219.3,219.23,8.79631203]
[1736195949378,8.79631203,219.31,219.24,8.79631203]
[1736195949585,8.79631203,219.33,219.26,8.79631203]
[1736195949984,8.79631203,219.32,219.26,8.79631203]
[1736195950884,8.79631203,219.33,219.26,8.79631203]
[1736195951802,8.79631203,219.32,219.23,11.4035]
[1736195952013,8.79631203,219.32,219.25,8.79631203]
[1736195952191,8.79631203,219.34,219.27,8.79631203]
[1736195952390,8.79631203,219.35,219.28,8.79631203]
[1736195952903,8.79631203,219.34,219.28,8.79631203]
[1736195953100,8.79631203,219.34,219.24,3.6373]
[1736195953101,1.5931,219.4,219.3,8.79631203]
[1736195953303,8.79631203,219.35,219.29,8.79631203]
[1736195954917,8.79631203,219.32,219.25,11.4025]
[1736195955121,8.79631203,219.32,219.26,8.79631203]
[1736195955288,1.5931,219.4,219.25,11.4025]
[1736195955289,8.79631203,219.33,219.27,8.79631203]
[1736195958012,8.79631203,219.32,219.26,8.79631203]
[1736195958312,8.79631203,219.33,219.27,8.79631203]
[1736195959113,8.79631203,219.34,219.28,8.79631203]
[1736195959315,8.79631203,219.33,219.27,8.79631203]
[1736195960013,8.79631203,219.33,219.26,8.79631203]
[1736195960516,8.79631203,219.33,219.27,8.79631203]
[1736195960817,8.79631203,219.32,219.26,8.79631203]
[1736195961311,8.79631203,219.29,219.21,6.1786]
[1736195961500,8.79631203,219.28,219.22,8.79631203]
[1736195961995,8.79631203,219.29,219.23,8.79631203]
[1736195963295,8.79631203,219.28,219.22,8.79631203]
[1736195963695,8.79631203,219.28,219.21,14.97491203]
[1736195963995,8.79631203,219.28,219.22,8.79631203]
[1736195964593,35.18524812,219.34,219.19,10.41541203]
[1736195964594,8.79631203,219.25,219.19,10.41541203]
[1736195964797,8.79631203,219.24,219.17,10.836312]
[1736195965024,8.79631203,219.24,219.18,8.79631203]
[1736195965322,8.79631203,219.25,219.19,8.79631203]
[1736195965701,8.79631203,219.24,219.18,8.79631203]
[1736195968210,8.79631203,219.23,219.17,10.83631203]
[1736195968421,8.79631203,219.24,219.18,8.79631203]
[1736195969631,8.79631203,219.25,219.18,8.79631203]
[1736195970617,8.79631203,219.25,219.18,20.20231203]
[1736195971116,8.79631203,219.25,219.19,8.79631203]
[1736195971414,8.79631203,219.26,219.2,8.79631203]
[1736195972323,8.79631203,219.27,219.21,8.79631203]
[1736195972523,3.5431,219.33,219.22,8.79631203]
[1736195972732,8.79631203,219.29,219.22,8.79631203]
[1736195973735,1.5031,219.33,219.2,23.776884]
[1736195973907,8.79631203,219.34,219.27,8.79631203]
[1736195974101,8.79631203,219.34,219.22,23.776884]
[1736195974102,8.79631203,219.32,219.25,8.79631203]
[1736195974316,8.79631203,219.28,219.24,2.04]
[1736195974522,8.79631203,219.27,219.24,2.04]
[1736195974724,8.79631203,219.27,219.21,10.37791203]
[1736195974926,8.79631203,219.28,219.22,8.79631203]
[1736195975432,8.79631203,219.29,219.23,8.79631203]
[1736195978032,8.79631203,219.28,219.19,6.1384]
[1736195978240,8.79631203,219.28,219.22,8.79631203]
[1736195978419,8.79631203,219.28,219.2,11.4051]
[1736195978936,8.79631203,219.28,219.21,8.79631203]
[1736195979433,8.79631203,219.27,219.2,20.20141203]
[1736195980235,8.79631203,219.26,219.19,14.93471203]
[1736195980734,8.79631203,219.26,219.2,8.79631203]
[1736195981039,8.79631203,219.24,219.19,6.1384]
[1736195981417,8.79631203,219.25,219.19,14.93471203]
[1736195982534,8.79631203,219.26,219.19,14.93471203]
[1736195983518,8.79631203,219.25,219.19,14.93471203]
[1736195983713,8.79631203,219.22,219.19,6.1384]
[1736195983920,8.79631203,219.21,219.14,29.91591203]
[1736195984224,8.79631203,219.21,219.14,19.0796]
[1736195984539,8.79631203,219.21,219.14,27.87591203]
[1736195985337,8.79631203,219.23,219.16,8.79631203]
[1736195985638,8.79631203,219.22,219.15,8.79631203]
[1736195985836,8.79631203,219.23,219.16,8.79631203]
[1736195986041,8.79631203,219.23,219.16,20.20341203]
[1736195986237,8.79631203,219.24,219.17,8.79631203]
[1736195986822,8.79631203,219.24,219.16,11.4071]
[1736195987014,8.79631203,219.25,219.18,8.79631203]
[1736195987622,8.79631203,219.24,219.18,8.79631203]
[1736195989845,8.79631203,219.25,219.18,8.79631203]
[1736195990043,8.79631203,219.26,219.19,8.79631203]
[1736195990212,2.02,219.3,219.19,8.79631203]
[1736195990213,8.79631203,219.25,219.19,8.79631203]
[1736195992759,8.79631203,219.27,219.21,8.79631203]
[1736195992946,8.79631203,219.27,219.16,11.4071]
[1736195992947,28.79631203,219.3,219.23,8.79631203]
[1736195993333,8.79631203,219.28,219.22,8.79631203]
[1736195996255,8.79631203,219.28,219.21,8.79631203]
[1736195996429,8.79631203,219.28,219.22,8.79631203]
[1736195996829,8.79631203,219.29,219.22,8.79631203]
[1736195999248,8.79631203,219.3,219.23,8.79631203]
[1736196000260,8.79631203,219.29,219.22,8.79631203]
[1736196000553,8.79631203,219.28,219.22,8.79631203]
[1736196001756,8.79631203,219.29,219.22,8.79631203]
[1736196003565,8.79631203,219.28,219.22,8.79631203]
[1736196004138,10.43711203,219.31,219.24,8.79631203]
[1736196004338,28.79631203,219.3,219.24,8.79631203]
[1736196004643,8.79631203,219.28,219.22,8.79631203]
[1736196008869,8.74139576,219.28,219.22,8.79631203]
[1736196009972,8.79631203,219.29,219.23,8.79631203]
[1736196010358,20.0,219.3,219.22,8.79631203]
[1736196010359,8.79631203,219.28,219.22,8.79631203]
[1736196010670,8.79631203,219.24,219.18,7.14260723]
[1736196010971,8.79631203,219.23,219.18,7.14260723]
[1736196011170,8.79631203,219.23,219.17,8.79631203]
[1736196011668,8.79631203,219.21,219.16,7.14260723]
[1736196011971,8.79631203,219.21,219.14,14.87901203]
[1736196012170,8.79631203,219.2,219.14,14.87901203]
[1736196012373,8.79631203,219.21,219.14,14.87901203]
[1736196013342,8.79631203,219.19,219.12,8.79631203]
[1736196013544,8.79631203,219.17,219.11,8.79631203]
[1736196013749,8.79631203,219.17,219.1,8.79631203]
[1736196016173,8.79631203,219.17,219.11,8.79631203]
[1736196016561,8.79631203,219.16,219.1,8.79631203]
[1736196017379,8.79631203,219.16,219.09,15.43011203]
[1736196020056,8.79631203,219.17,219.11,8.79631203]
[1736196020258,8.79631203,219.16,219.09,15.43011203]
[1736196020485,8.79631203,219.16,219.1,8.79631203]
[1736196023380,8.79631203,219.18,219.12,8.79631203]
[1736196023679,20.0,219.19,219.13,8.79631203]
[1736196023876,28.79631203,219.19,219.13,8.79631203]
[1736196024378,8.79631203,219.18,219.12,8.79631203]
[1736196024685,28.79631203,219.19,219.12,8.79631203]
[1736196024868,28.79631203,219.19,219.13,8.79631203]
[1736196025988,20.0,219.19,219.14,8.79631203]
[1736196026484,28.79631203,219.19,219.13,8.79631203]
[1736196026684,20.0,219.19,219.13,8.79631203]
[1736196026870,28.79631203,219.19,219.13,8.79631203]
[1736196027073,8.79631203,219.18,219.12,8.79631203]
[1736196028356,8.79631203,219.16,219.09,6.6338]
[1736196028595,8.79631203,219.15,219.08,8.79631203]
[1736196028959,8.79631203,219.15,219.07,20.0]
[1736196028960,8.79631203,219.15,219.09,8.79631203]
[1736196029668,31.4058,219.19,219.07,20.0]
[1736196029669,8.79631203,219.16,219.1,8.79631203]
[1736196031600,8.79631203,219.15,219.07,20.0]
[1736196031778,8.79631203,219.15,219.09,8.79631203]
[1736196032989,8.79631203,219.15,219.08,8.79631203]
[1736196033193,8.79631203,219.14,219.07,8.79631203]
[1736196034464,8.79631203,219.15,219.08,8.79631203]
[1736196034892,8.79631203,219.16,219.09,8.79631203]
[1736196035186,8.79631203,219.17,219.1,8.79631203]
[1736196036177,8.79631203,219.17,219.09,8.79631203]
[1736196036382,8.79631203,219.14,219.08,8.79631203]
[1736196036565,31.4058,219.19,219.08,8.79631203]
[1736196036566,8.79631203,219.15,219.08,8.79631203]
[1736196037485,8.79631203,219.15,219.09,8.79631203]
[1736196038371,8.79631203,219.15,219.08,8.79631203]
[1736196038571,8.79631203,219.16,219.09,8.79631203]
[1736196039497,8.79631203,219.15,219.08,8.79631203]
[1736196041797,8.79631203,219.16,219.09,8.79631203]
[1736196042002,28.79631203,219.2,219.13,8.79631203]
[1736196042299,8.79631203,219.18,219.12,8.79631203]
[1736196042501,8.79631203,219.18,219.11,8.79631203]
[1736196042689,20.0,219.2,219.1,8.79631203]
[1736196042690,8.79631203,219.17,219.1,8.79631203]
[1736196043502,8.79631203,219.17,219.04,17.9667]
[1736196043701,8.79631203,219.17,219.1,8.79631203]
[1736196045204,8.79631203,219.18,219.11,8.79631203]
[1736196046385,20.0,219.18,219.12,8.79631203]
[1736196047595,28.79631203,219.18,219.12,8.79631203]
[1736196049398,2.0,219.22,219.14,8.79631203]
[1736196049612,8.79631203,219.21,219.14,8.79631203]
[1736196049902,8.79631203,219.21,219.08,11.4113]
[1736196049903,8.79631203,219.2,219.13,8.79631203]
[1736196051584,8.79631203,219.2,219.06,1.98]
[1736196051790,8.79631203,219.17,219.11,8.79631203]
[1736196051987,8.79631203,219.17,219.06,1.98]
[1736196052186,8.79631203,219.15,219.08,8.79631203]
[1736196052996,23.776884,219.21,219.09,8.79631203]
[1736196052997,8.79631203,219.16,219.09,8.79631203]
[1736196053199,20.0,219.18,219.12,8.79631203]
[1736196053393,28.79631203,219.18,219.11,8.79631203]
[1736196054093,8.79631203,219.17,219.1,8.79631203]
[1736196054707,28.79631203,219.18,219.11,8.79631203]
[1736196055010,8.79631203,219.17,219.1,8.79631203]
[1736196055617,8.79631203,219.16,219.09,8.79631203]
[1736196059109,20.0,219.18,219.05,23.776884]
[1736196059110,8.79631203,219.17,219.1,8.79631203]
[1736196060184,8.79631203,219.16,219.09,8.79631203]
[1736196060505,20.0,219.18,219.09,8.79631203]
[1736196060816,8.79631203,219.16,219.09,8.79631203]
[1736196063303,10.45731203,219.16,219.06,7.14260723]
[1736196063514,8.79631203,219.15,219.07,8.79631203]
[1736196064010,8.79631203,219.14,219.07,8.79631203]
[1736196064909,8.79631203,219.15,219.08,8.79631203]
[1736196065116,10.45731203,219.16,219.09,8.79631203]
[1736196066822,10.45731203,219.16,219.07,15.93891926]
[1736196067125,10.45731203,219.16,219.07,8.79631203]
[1736196067526,8.79631203,219.14,219.06,7.14260723]
[1736196067692,8.79631203,219.14,219.05,15.93891926]
[1736196067889,8.79631203,219.12,219.05,7.14260723]
[1736196068201,8.79631203,219.09,219.05,7.14260723]
[1736196068404,10.33281203,219.09,219.05,7.14260723]
[1736196069016,1.5365,219.09,219.05,7.14260723]
[1736196069223,1.5365,219.09,219.02,8.79631203]
[1736196069429,1.5365,219.09,219.03,8.79631203]
[1736196069632,1.5365,219.09,219.05,8.79631203]
[1736196072207,1.5365,219.09,219.04,8.79631203]
[1736196073530,1.5365,219.09,219.05,8.79631203]
[1736196073829,1.5365,219.09,219.03,8.79631203]
[1736196075309,10.33281203,219.09,219.0,7.14260723]
[1736196075509,1.5365,219.09,219.03,8.79631203]
[1736196076026,1.5365,219.09,219.04,8.79631203]
[1736196076930,20.0,219.11,219.05,8.79631203]
[1736196077140,1.6161,219.14,219.09,8.79631203]
[1736196077440,1.6161,219.14,219.1,8.79631203]
[1736196077942,1.6161,219.14,219.09,8.79631203]
[1736196079105,1.6161,219.14,219.08,8.79631203]
[1736196080006,1.6161,219.14,219.09,8.79631203]
[1736196080349,1.6161,219.14,219.1,8.79631203]
[1736196091663,20.0,219.16,219.11,8.79631203]
[1736196092554,8.79631203,219.18,219.11,8.79631203]
[1736196096852,8.79631203,219.13,219.06,7.14260723]
[1736196097054,8.79631203,219.12,219.06,7.14260723]
[1736196097365,8.79631203,219.11,219.06,7.14260723]
[1736196097658,8.79631203,219.09,219.05,7.14260723]
[1736196098240,8.79631203,219.09,219.01,15.93891926]
[1736196098445,8.79631203,219.09,219.02,8.79631203]
[1736196098835,10.31371203,219.12,219.05,8.79631203]
[1736196099041,1.5174,219.12,219.06,8.79631203]
[1736196099638,3.36747518,219.11,219.06,8.79631203]
[1736196100249,3.36747518,219.1,219.06,8.79631203]
[1736196100962,3.36747518,219.09,219.06,8.79631203]
[1736196101448,1.5174,219.12,219.06,8.79631203]
[1736196102169,1.5174,219.12,219.08,8.79631203]
[1736196102368,3.36529638,219.11,219.07,8.79631203]
[1736196102853,3.36529638,219.11,219.06,8.79631203]
[1736196103155,3.36529638,219.1,219.06,8.79631203]
[1736196103552,3.36529638,219.09,219.06,8.79631203]
[1736196104074,1.5174,219.12,219.07,8.79631203]
[1736196104966,3.36616198,219.11,219.07,8.79631203]
[1736196105468,3.36616198,219.11,219.06,8.79631203]
[1736196106276,3.36616198,219.1,219.06,8.79631203]
[1736196106767,23.36616198,219.1,219.01,7.14260723]
[1736196106939,3.36616198,219.09,219.02,15.93891926]
[1736196107146,3.36616198,219.09,219.07,8.79631203]
[1736196107559,1.5174,219.12,219.07,8.79631203]
[1736196108357,3.3668937,219.11,219.07,8.79631203]
[1736196109279,3.3668937,219.1,219.07,8.79631203]
[1736196109751,1.5174,219.12,219.07,8.79631203]
[1736196110395,3.36728349,219.11,219.07,8.79631203]
[1736196110765,3.36728349,219.1,219.07,8.79631203]
[1736196111565,1.5174,219.12,219.07,8.79631203]
[1736196112148,3.36718332,219.11,219.1,8.79631203]
[1736196112567,3.36718332,219.11,219.09,8.79631203]
[1736196113172,3.36718332,219.11,219.03,23.776884]
[1736196113376,3.36718332,219.11,219.08,8.79631203]
[1736196113553,8.79631203,219.15,219.08,8.79631203]
[1736196114273,3.36824267,219.14,219.08,8.79631203]
[1736196114973,3.36824267,219.13,219.08,8.79631203]
[1736196115470,3.36824267,219.12,219.08,8.79631203]
[1736196115677,3.36824267,219.12,219.06,8.79631203]
[1736196116475,8.4105,219.19,219.03,11.4139]
[1736196116476,21.9805547,219.11,219.03,7.14260723]
[1736196116646,8.79631203,219.05,219.03,7.14260723]
[1736196116851,8.79631203,219.05,219.01,7.14260723]
[1736196117255,8.79631203,219.04,219.01,7.14260723]
[1736196117467,8.79631203,219.05,219.01,7.14260723]
[1736196117679,8.79631203,219.05,218.97,8.79631203]
[1736196117858,3.36688505,219.04,218.97,8.79631203]
[1736196118054,3.36688505,219.04,218.98,8.79631203]
[1736196118253,3.36688505,219.04,218.95,14.28521447]
[1736196118254,3.36688505,219.04,218.95,7.14260723]
[1736196118476,8.79631203,219.05,218.97,8.79631203]
[1736196119578,3.36486891,219.04,218.97,8.79631203]
[1736196120278,8.79631203,219.04,218.97,8.79631203]
[1736196120484,8.79631203,219.02,218.95,8.79631203]
[1736196121478,1.6293,219.03,218.94,7.14260723]
[1736196121479,8.79631203,219.0,218.94,7.14260723]
[1736196121779,8.79631203,218.98,218.94,7.14260723]
[1736196121994,8.79631203,218.98,218.92,7.14260723]
[1736196122985,8.79631203,218.98,218.91,23.776884]
[1736196123169,8.79631203,218.98,218.91,32.57319603]
[1736196124470,8.79631203,218.99,218.92,8.79631203]
[1736196127290,8.79631203,218.99,218.93,8.79631203]
[1736196127668,8.79631203,219.01,218.94,8.79631203]
[1736196128077,8.79631203,219.01,218.95,8.79631203]
[1736196129369,8.79631203,219.02,218.96,8.79631203]
[1736196129688,12.40561203,219.03,218.97,8.79631203]
[1736196130370,8.79631203,219.02,218.96,8.79631203]
[1736196131966,10.42561203,219.03,218.96,8.79631203]
[1736196133775,8.79631203,218.99,218.91,11.4202]
[1736196133986,8.79631203,218.98,218.91,11.4202]
[1736196134180,8.79631203,218.98,218.91,20.21651203]
[1736196134598,8.79631203,218.99,218.92,8.79631203]
[1736196135067,8.79631203,218.99,218.91,11.4202]
[1736196135068,8.79631203,219.0,218.93,8.79631203]
[1736196135271,1.6293,219.03,218.92,8.79631203]
[1736196135272,8.79631203,218.99,218.92,8.79631203]
[1736196136296,8.79631203,219.0,218.93,8.79631203]
[1736196136487,8.79631203,218.99,218.92,8.79631203]
[1736196138194,8.79631203,219.01,218.95,8.79631203]
[1736196138571,8.79631203,219.01,218.94,8.79631203]
[1736196141273,8.79631203,218.99,218.91,11.4197]